[Event "*** Titled Tuesday 3|2 Blitz"]
[Site "Chess.com"]
[Date "2015.11.03"]
[Round "6"]
[White "Tirantes"]
[Black "Alliswell998"]
[Result "1-0"]
[WhiteElo "2241"]
[BlackElo "2103"]
[TimeControl "180+2"]
[EndTime "18:11:33 PST"]
[Termination "Tirantes won by checkmate"]

1. c4 {[%clk 0:03:01.9]} 1... Nf6 {[%clk 0:03:00.7]} 2. Nc3 {[%clk 0:02:57.3]}
2... c5 {[%clk 0:03:01.5]} 3. g3 {[%clk 0:02:55.5]} 3... e6 {[%clk 0:03:00.7]}
4. Nf3 {[%clk 0:02:53.1]} 4... b6 {[%clk 0:02:59.3]} 5. Bg2 {[%clk 0:02:50.5]}
5... Bb7 {[%clk 0:03:00.2]} 6. O-O {[%clk 0:02:50.2]} 6... Be7 {[%clk
0:03:00.3]} 7. Re1 {[%clk 0:02:48]} 7... Ne4 {[%clk 0:02:58]} 8. Nxe4 {[%clk
0:02:46.5]} 8... Bxe4 {[%clk 0:02:58.5]} 9. d4 {[%clk 0:02:41.4]} 9... O-O
{[%clk 0:02:29.4]} 10. d5 {[%clk 0:02:40.9]} 10... exd5 {[%clk 0:02:27.3]} 11.
cxd5 {[%clk 0:02:38.8]} 11... Bf6 {[%clk 0:02:28.4]} 12. Bh3 {[%clk 0:02:23.5]}
12... d6 {[%clk 0:02:22.3]} 13. Qb3 {[%clk 0:02:12.7]} 13... Nd7 {[%clk
0:02:16.4]} 14. Nd2 {[%clk 0:02:04.2]} 14... Bg6 {[%clk 0:02:14.4]} 15. Nf3
{[%clk 0:01:59.2]} 15... Ne5 {[%clk 0:02:13.5]} 16. Nxe5 {[%clk 0:01:57.6]}
16... dxe5 {[%clk 0:02:07.8]} 17. e4 {[%clk 0:01:53.6]} 17... Qd6 {[%clk
0:02:04.9]} 18. f3 {[%clk 0:01:50.6]} 18... Rab8 {[%clk 0:02:03]} 19. a4 {[%clk
0:01:47.7]} 19... h5 {[%clk 0:01:59.8]} 20. Be3 {[%clk 0:01:44.1]} 20... h4
{[%clk 0:01:59.8]} 21. Qc4 {[%clk 0:01:38.4]} 21... Be7 {[%clk 0:01:49.5]} 22.
f4 {[%clk 0:01:26.2]} 22... Rb7 {[%clk 0:01:28.1]} 23. f5 {[%clk 0:01:21.2]}
23... Qd7 {[%clk 0:01:18.4]} 24. Kg2 {[%clk 0:01:09.5]} 24... Bh5 {[%clk
0:01:01]} 25. g4 {[%clk 0:01:05.6]} 25... b5 {[%clk 0:00:56.6]} 26. axb5 {[%clk
0:00:59.9]} 26... Rxb5 {[%clk 0:00:55.5]} 27. Re2 {[%clk 0:00:49.4]} 27... Rb4
{[%clk 0:00:47.7]} 28. Qc2 {[%clk 0:00:46.5]} 28... Rfb8 {[%clk 0:00:38.5]} 29.
Ra2 {[%clk 0:00:45.9]} 29... Bxg4 {[%clk 0:00:26.5]} 30. Bxg4 {[%clk 0:00:45.7]}
30... g6 {[%clk 0:00:26.8]} 31. h3 {[%clk 0:00:41.5]} 31... gxf5 {[%clk
0:00:24.4]} 32. Bxf5 {[%clk 0:00:41.6]} 32... Qd6 {[%clk 0:00:26.1]} 33. Kh2
{[%clk 0:00:39.4]} 33... Kh8 {[%clk 0:00:27.1]} 34. Rg2 {[%clk 0:00:36.9]} 34...
Bf6 {[%clk 0:00:21.3]} 35. Qe2 {[%clk 0:00:36.2]} 35... Bg7 {[%clk 0:00:18.2]}
36. Qh5+ {[%clk 0:00:34.8]} 36... Kg8 {[%clk 0:00:19.6]} 37. Bh6 {[%clk
0:00:31.4]} 37... Rxb2 {[%clk 0:00:17.3]} 38. Bxg7 {[%clk 0:00:23.6]} 38... f6
{[%clk 0:00:02.5]} 39. Bh7# {[%clk 0:00:21.5]} 1-0

[Event "*** Titled Tuesday 3|2 Blitz"]
[Site "Chess.com"]
[Date "2015.11.03"]
[Round "6"]
[White "Izoria123"]
[Black "Cryptochess"]
[Result "1-0"]
[WhiteElo "2453"]
[BlackElo "2416"]
[TimeControl "180+2"]
[EndTime "18:12:09 PST"]
[Termination "Izoria123 won by resignation"]

1. e4 {[%clk 0:03:01.9]} 1... d6 {[%clk 0:02:54]} 2. d4 {[%clk 0:03:02]} 2...
Nf6 {[%clk 0:02:53.7]} 3. Nc3 {[%clk 0:03:03]} 3... g6 {[%clk 0:02:55.4]} 4. Be3
{[%clk 0:03:03.9]} 4... c6 {[%clk 0:02:56.9]} 5. Qd2 {[%clk 0:03:03.9]} 5... b5
{[%clk 0:02:58.4]} 6. Bd3 {[%clk 0:03:04.6]} 6... e5 {[%clk 0:02:59.6]} 7. dxe5
{[%clk 0:03:04.5]} 7... dxe5 {[%clk 0:03:01.5]} 8. Nf3 {[%clk 0:03:05.6]} 8...
Qc7 {[%clk 0:03:02.4]} 9. h3 {[%clk 0:03:05.4]} 9... Bg7 {[%clk 0:02:55.6]} 10.
a4 {[%clk 0:03:03.7]} 10... b4 {[%clk 0:02:55.7]} 11. Ne2 {[%clk 0:03:04.2]}
11... a5 {[%clk 0:02:56.6]} 12. c3 {[%clk 0:03:04.9]} 12... Na6 {[%clk
0:02:51.1]} 13. O-O {[%clk 0:03:01.4]} 13... O-O {[%clk 0:02:51.5]} 14. Ng3
{[%clk 0:03:02.3]} 14... Rd8 {[%clk 0:02:52.2]} 15. Qe2 {[%clk 0:03:03.3]} 15...
Nd7 {[%clk 0:02:49]} 16. Bc4 {[%clk 0:02:51.6]} 16... Ndc5 {[%clk 0:02:42.7]}
17. cxb4 {[%clk 0:02:47]} 17... axb4 {[%clk 0:02:41.3]} 18. Ng5 {[%clk
0:02:45.5]} 18... Be6 {[%clk 0:02:23.7]} 19. Nxe6 {[%clk 0:02:43.4]} 19... fxe6
{[%clk 0:02:25.4]} 20. b3 {[%clk 0:02:38.5]} 20... Bf8 {[%clk 0:02:07.8]} 21.
Rad1 {[%clk 0:02:37.8]} 21... Rd6 {[%clk 0:01:42.5]} 22. Rxd6 {[%clk 0:02:34.5]}
22... Bxd6 {[%clk 0:01:44.4]} 23. Rd1 {[%clk 0:02:34.5]} 23... Qe7 {[%clk
0:01:44.3]} 24. Qc2 {[%clk 0:02:08.2]} 24... Nc7 {[%clk 0:01:39.5]} 25. Nf1
{[%clk 0:02:07.2]} 25... Rd8 {[%clk 0:01:39.2]} 26. Nh2 {[%clk 0:02:02.6]} 26...
h5 {[%clk 0:01:25.6]} 27. Nf3 {[%clk 0:02:02]} 27... Rd7 {[%clk 0:01:23.9]} 28.
Bxc5 {[%clk 0:01:49]} 28... Bxc5 {[%clk 0:01:25.8]} 29. Nxe5 {[%clk 0:01:48.6]}
29... Rxd1+ {[%clk 0:01:24.8]} 30. Qxd1 {[%clk 0:01:49.7]} 30... Qf6 {[%clk
0:01:26.4]} 31. Nf3 {[%clk 0:01:42.3]} 31... Kf8 {[%clk 0:01:16]} 32. h4 {[%clk
0:01:27.7]} 32... Qb2 {[%clk 0:01:12.6]} 33. Qe2 {[%clk 0:01:13.7]} 33... Qc1+
{[%clk 0:00:55.1]} 34. Kh2 {[%clk 0:01:13.2]} 34... Ke7 {[%clk 0:00:55.1]} 35.
g3 {[%clk 0:01:12.2]} 35... Ne8 {[%clk 0:00:49.4]} 36. Ng5 {[%clk 0:01:11.4]}
36... Nf6 {[%clk 0:00:50.4]} 37. Kg2 {[%clk 0:01:07.8]} 37... Ng4 {[%clk
0:00:50.1]} 38. Nh3 {[%clk 0:00:27.8]} 38... Qc3 {[%clk 0:00:48.3]} 39. Qf3
{[%clk 0:00:17.3]} 39... Ne5 {[%clk 0:00:42.3]} 40. Qf4 {[%clk 0:00:13]} 40...
Nxc4 {[%clk 0:00:30.9]} 41. bxc4 {[%clk 0:00:14]} 41... Qd4 {[%clk 0:00:19.9]}
42. Ng5 {[%clk 0:00:11.1]} 42... Qd7 {[%clk 0:00:05.6]} 43. Qf7+ {[%clk
0:00:11.2]} 43... Kd8 {[%clk 0:00:06.4]} 44. Nxe6+ {[%clk 0:00:12.2]} 44... Kc8
{[%clk 0:00:08.1]} 45. Qxd7+ {[%clk 0:00:13]} 45... Kxd7 {[%clk 0:00:09.5]} 46.
Nxc5+ {[%clk 0:00:14.1]} 46... Kd6 {[%clk 0:00:11.4]} 47. Nb3 {[%clk 0:00:15.2]}
47... Ke5 {[%clk 0:00:13.3]} 48. Kf3 {[%clk 0:00:16.3]} 1-0

[Event "*** Titled Tuesday 3|2 Blitz"]
[Site "Chess.com"]
[Date "2015.11.03"]
[Round "6"]
[White "ilmago"]
[Black "gauranga"]
[Result "1-0"]
[WhiteElo "1911"]
[BlackElo "1947"]
[TimeControl "180+2"]
[EndTime "18:12:14 PST"]
[Termination "ilmago won by resignation"]

1. e4 {[%clk 0:03:01.9]} 1... b6 {[%clk 0:03:00.7]} 2. d4 {[%clk 0:02:53.7]}
2... Bb7 {[%clk 0:03:01.8]} 3. Bd3 {[%clk 0:02:54.6]} 3... Nf6 {[%clk
0:03:02.5]} 4. Qe2 {[%clk 0:02:50.5]} 4... Nc6 {[%clk 0:03:02.6]} 5. Nf3 {[%clk
0:02:49.2]} 5... Nb4 {[%clk 0:03:02.8]} 6. O-O {[%clk 0:02:46]} 6... e6 {[%clk
0:03:03.5]} 7. Bd2 {[%clk 0:02:42.6]} 7... Nxd3 {[%clk 0:03:02.2]} 8. cxd3
{[%clk 0:02:43.4]} 8... d6 {[%clk 0:03:03.6]} 9. Nc3 {[%clk 0:02:43.6]} 9... Be7
{[%clk 0:03:03.8]} 10. Rac1 {[%clk 0:02:43.3]} 10... a6 {[%clk 0:03:04.6]} 11.
Rfe1 {[%clk 0:02:39.1]} 11... c5 {[%clk 0:03:00.7]} 12. dxc5 {[%clk 0:02:36]}
12... bxc5 {[%clk 0:03:01.8]} 13. d4 {[%clk 0:02:36]} 13... cxd4 {[%clk
0:03:01.5]} 14. Nxd4 {[%clk 0:02:36.2]} 14... O-O {[%clk 0:03:01.3]} 15. Rc2
{[%clk 0:02:18.4]} 15... Qd7 {[%clk 0:03:01.2]} 16. Rec1 {[%clk 0:02:18.4]}
16... Rfc8 {[%clk 0:02:51.2]} 17. f3 {[%clk 0:02:18.9]} 17... Bd8 {[%clk
0:02:47.3]} 18. Be3 {[%clk 0:02:19.7]} 18... Ba5 {[%clk 0:02:32]} 19. b3 {[%clk
0:02:18.2]} 19... e5 {[%clk 0:01:35.8]} 20. Nf5 {[%clk 0:02:14.4]} 20... g6
{[%clk 0:01:36.3]} 21. Nh6+ {[%clk 0:02:05.8]} 21... Kg7 {[%clk 0:01:37.1]} 22.
g4 {[%clk 0:01:57]} 22... Bxc3 {[%clk 0:01:25.2]} 23. Rxc3 {[%clk 0:01:57.5]}
23... d5 {[%clk 0:01:26.4]} 24. g5 {[%clk 0:01:49.4]} 24... Nh5 {[%clk 0:01:27]}
25. Ng4 {[%clk 0:01:40.5]} 25... Rxc3 {[%clk 0:01:22.9]} 26. Rxc3 {[%clk
0:01:38.2]} 26... dxe4 {[%clk 0:00:36.5]} 27. Nxe5 {[%clk 0:01:33.7]} 27... exf3
{[%clk 0:00:29.2]} 28. Qxf3 {[%clk 0:01:09]} 28... Qe7 {[%clk 0:00:22.8]} 29.
Qxf7+ {[%clk 0:00:55.7]} 29... Qxf7 {[%clk 0:00:22.6]} 30. Nxf7 {[%clk
0:00:56.7]} 30... Kxf7 {[%clk 0:00:20.8]} 31. Rc7+ {[%clk 0:00:57.5]} 31... Ke6
{[%clk 0:00:22.1]} 32. Rxb7 {[%clk 0:00:58.6]} 32... Re8 {[%clk 0:00:19.3]} 33.
Rxh7 {[%clk 0:00:55.6]} 33... Kf5 {[%clk 0:00:20.4]} 34. Kf2 {[%clk 0:00:54.6]}
34... a5 {[%clk 0:00:17.8]} 35. Rf7+ {[%clk 0:00:54.6]} 35... Kg4 {[%clk
0:00:18.4]} 36. Bb6 {[%clk 0:00:47.2]} 36... Re5 {[%clk 0:00:18.2]} 37. Be3
{[%clk 0:00:41.2]} 37... a4 {[%clk 0:00:14.4]} 38. bxa4 {[%clk 0:00:40]} 38...
Ra5 {[%clk 0:00:15.5]} 39. Rd7 {[%clk 0:00:36]} 39... Rf5+ {[%clk 0:00:08.8]}
40. Kg2 {[%clk 0:00:35.8]} 40... Re5 {[%clk 0:00:07.1]} 41. Rd4+ {[%clk
0:00:35.6]} 41... Kf5 {[%clk 0:00:08.3]} 42. Kf3 {[%clk 0:00:36.7]} 42... Rc5
{[%clk 0:00:06.6]} 43. Rf4+ {[%clk 0:00:33.5]} 43... Nxf4 {[%clk 0:00:07.1]} 44.
Bxc5 {[%clk 0:00:34.4]} 44... Nd3 {[%clk 0:00:07.4]} 45. Be3 {[%clk 0:00:33.6]}
45... Nb4 {[%clk 0:00:07.1]} 46. a3 {[%clk 0:00:34.3]} 46... Nc6 {[%clk
0:00:08]} 1-0

[Event "*** Titled Tuesday 3|2 Blitz"]
[Site "Chess.com"]
[Date "2015.11.03"]
[Round "6"]
[White "spirals5"]
[Black "Penguininja"]
[Result "1-0"]
[WhiteElo "2214"]
[BlackElo "2158"]
[TimeControl "180+2"]
[EndTime "18:13:30 PST"]
[Termination "spirals5 won by resignation"]

1. e4 {[%clk 0:03:01.9]} 1... e5 {[%clk 0:03:00.5]} 2. Nf3 {[%clk 0:02:57.4]}
2... Nc6 {[%clk 0:03:01]} 3. Bb5 {[%clk 0:02:57.3]} 3... f5 {[%clk 0:03:01.9]}
4. d3 {[%clk 0:02:56.3]} 4... fxe4 {[%clk 0:03:03]} 5. dxe4 {[%clk 0:02:57.2]}
5... Nf6 {[%clk 0:03:04.6]} 6. O-O {[%clk 0:02:57.2]} 6... Bc5 {[%clk
0:03:04.7]} 7. Bxc6 {[%clk 0:02:51.9]} 7... bxc6 {[%clk 0:03:04.7]} 8. Nxe5
{[%clk 0:02:48.5]} 8... O-O {[%clk 0:03:02.8]} 9. Bg5 {[%clk 0:02:45.3]} 9... d6
{[%clk 0:02:55.6]} 10. Nd3 {[%clk 0:02:42.7]} 10... Bd4 {[%clk 0:02:50.3]} 11.
c3 {[%clk 0:02:42.9]} 11... Bb6 {[%clk 0:02:49]} 12. Nd2 {[%clk 0:02:31.4]}
12... Qe8 {[%clk 0:02:45.3]} 13. Bxf6 {[%clk 0:02:30.9]} 13... Rxf6 {[%clk
0:02:46.4]} 14. Nc4 {[%clk 0:02:25.4]} 14... Qxe4 {[%clk 0:02:20.7]} 15. Nxb6
{[%clk 0:02:25.6]} 15... axb6 {[%clk 0:02:21.9]} 16. Re1 {[%clk 0:02:21.2]}
16... Qg6 {[%clk 0:02:20.2]} 17. f3 {[%clk 0:01:32.8]} 17... Bh3 {[%clk
0:01:40.1]} 18. g3 {[%clk 0:01:33]} 18... h5 {[%clk 0:01:35.5]} 19. Nf2 {[%clk
0:01:26.9]} 19... Be6 {[%clk 0:01:25.8]} 20. Qd3 {[%clk 0:01:07.5]} 20... Qf7
{[%clk 0:01:19]} 21. f4 {[%clk 0:01:04.3]} 21... Bc4 {[%clk 0:01:09.8]} 22. Qd2
{[%clk 0:01:03.8]} 22... Bd5 {[%clk 0:01:05.8]} 23. b3 {[%clk 0:01:02]} 23... b5
{[%clk 0:01:06.1]} 24. Ne4 {[%clk 0:00:56.5]} 24... Rf5 {[%clk 0:01:02.7]} 25.
Rad1 {[%clk 0:00:42.9]} 25... Qg6 {[%clk 0:00:54.1]} 26. Ng5 {[%clk 0:00:33.7]}
26... Raf8 {[%clk 0:00:31.7]} 27. h4 {[%clk 0:00:33.9]} 27... Qf6 {[%clk
0:00:24.9]} 28. Qd4 {[%clk 0:00:25.4]} 28... Qg6 {[%clk 0:00:17.8]} 29. Re2
{[%clk 0:00:21.7]} 29... Bf3 {[%clk 0:00:10.8]} 30. Re6 {[%clk 0:00:15.5]} 30...
R5f6 {[%clk 0:00:06]} 31. Rde1 {[%clk 0:00:14.7]} 31... Bg4 {[%clk 0:00:06.5]}
32. Re7 {[%clk 0:00:11.6]} 32... Bf5 {[%clk 0:00:06.5]} 33. Qf2 {[%clk
0:00:11.6]} 33... c5 {[%clk 0:00:07.6]} 34. Rxc7 {[%clk 0:00:12]} 34... b4
{[%clk 0:00:08]} 35. cxb4 {[%clk 0:00:12.2]} 35... cxb4 {[%clk 0:00:09.9]} 36.
Ree7 {[%clk 0:00:12.8]} 36... Bg4 {[%clk 0:00:10.3]} 37. Rxg7+ {[%clk
0:00:13.7]} 37... Qxg7 {[%clk 0:00:12.2]} 38. Rxg7+ {[%clk 0:00:14.4]} 38...
Kxg7 {[%clk 0:00:14.1]} 39. Qd4 {[%clk 0:00:15.4]} 39... Kg6 {[%clk 0:00:15]}
40. Ne4 {[%clk 0:00:10.8]} 40... Re6 {[%clk 0:00:14.6]} 41. Qd5 {[%clk 0:00:11]}
41... Rfe8 {[%clk 0:00:15.1]} 42. Qg5+ {[%clk 0:00:10.3]} 42... Kf7 {[%clk
0:00:16.7]} 43. Nf2 {[%clk 0:00:07.5]} 43... Re1+ {[%clk 0:00:17.1]} 44. Kg2
{[%clk 0:00:08.4]} 44... R1e2 {[%clk 0:00:17.9]} 45. f5 {[%clk 0:00:08.4]} 45...
Rxa2 {[%clk 0:00:16.6]} 46. Qg6+ {[%clk 0:00:08.7]} 46... Kf8 {[%clk 0:00:17.1]}
47. f6 {[%clk 0:00:08.4]} 47... Ree2 {[%clk 0:00:17.1]} 48. Qg7+ {[%clk
0:00:09.3]} 48... Ke8 {[%clk 0:00:17.2]} 49. f7+ {[%clk 0:00:10.6]} 49... Kd7
{[%clk 0:00:18.5]} 50. f8=Q+ {[%clk 0:00:11.8]} 50... Kc6 {[%clk 0:00:20.4]} 51.
Qf4 {[%clk 0:00:11.6]} 51... Be6 {[%clk 0:00:19.9]} 52. Qgd4 {[%clk 0:00:11.4]}
52... Bd5+ {[%clk 0:00:21]} 53. Kf1 {[%clk 0:00:10]} 53... Rec2 {[%clk 0:00:19]}
54. Qxd5+ {[%clk 0:00:07]} 54... Kxd5 {[%clk 0:00:20]} 55. Qe3 {[%clk
0:00:07.3]} 55... Ra1+ {[%clk 0:00:19.8]} 56. Kg2 {[%clk 0:00:08.1]} 56... Raa2
{[%clk 0:00:21.7]} 57. g4 {[%clk 0:00:08]} 57... hxg4 {[%clk 0:00:22.4]} 58. h5
{[%clk 0:00:09.3]} 58... Rxf2+ {[%clk 0:00:17.9]} 59. Qxf2 {[%clk 0:00:09.7]}
59... Rxf2+ {[%clk 0:00:19.8]} 60. Kxf2 {[%clk 0:00:11]} 60... Ke5 {[%clk
0:00:21.4]} 61. Kg3 {[%clk 0:00:12.2]} 61... Kf5 {[%clk 0:00:22.4]} 62. h6
{[%clk 0:00:13.5]} 62... Kg6 {[%clk 0:00:23.6]} 63. Kxg4 {[%clk 0:00:14.9]}
63... d5 {[%clk 0:00:23.3]} 64. Kf4 {[%clk 0:00:15.9]} 64... Kxh6 {[%clk
0:00:23.6]} 65. Ke5 {[%clk 0:00:16.9]} 65... Kg7 {[%clk 0:00:25.5]} 66. Kxd5
{[%clk 0:00:18.1]} 66... Kf7 {[%clk 0:00:27.4]} 67. Kc4 {[%clk 0:00:19.5]} 67...
Ke7 {[%clk 0:00:29.3]} 68. Kxb4 {[%clk 0:00:20.7]} 68... Kd6 {[%clk 0:00:31.2]}
69. Kb5 {[%clk 0:00:21.9]} 69... Kc7 {[%clk 0:00:32.4]} 70. Ka6 {[%clk
0:00:21.8]} 70... Kb8 {[%clk 0:00:33.2]} 71. Kb6 {[%clk 0:00:22.5]} 71... Kc8
{[%clk 0:00:34.4]} 72. b4 {[%clk 0:00:23.1]} 72... Kb8 {[%clk 0:00:36.3]} 73. b5
{[%clk 0:00:24.2]} 73... Ka8 {[%clk 0:00:37.6]} 74. Kc7 {[%clk 0:00:25.2]} 74...
Ka7 {[%clk 0:00:38.7]} 75. b6+ {[%clk 0:00:26.5]} 75... Ka6 {[%clk 0:00:40.6]}
76. b7 {[%clk 0:00:27.8]} 1-0

[Event "*** Titled Tuesday 3|2 Blitz"]
[Site "Chess.com"]
[Date "2015.11.03"]
[Round "6"]
[White "Aygehovit1992"]
[Black "GrigorGrigorov"]
[Result "0-1"]
[WhiteElo "2462"]
[BlackElo "2429"]
[TimeControl "180+2"]
[EndTime "18:14:35 PST"]
[Termination "GrigorGrigorov won by checkmate"]

1. e4 {[%clk 0:03:01.9]} 1... g6 {[%clk 0:03:00.9]} 2. d4 {[%clk 0:02:57.2]}
2... Bg7 {[%clk 0:03:02]} 3. Nc3 {[%clk 0:02:58.8]} 3... c6 {[%clk 0:03:02.9]}
4. Be3 {[%clk 0:02:58.3]} 4... d5 {[%clk 0:03:03.2]} 5. e5 {[%clk 0:02:55.7]}
5... f6 {[%clk 0:03:02.8]} 6. f4 {[%clk 0:02:54.4]} 6... Nh6 {[%clk 0:03:03.9]}
7. Nf3 {[%clk 0:02:55]} 7... Bg4 {[%clk 0:03:03.7]} 8. h3 {[%clk 0:02:54.9]}
8... Bxf3 {[%clk 0:03:04]} 9. Qxf3 {[%clk 0:02:55.6]} 9... O-O {[%clk
0:03:05.4]} 10. exf6 {[%clk 0:02:32.4]} 10... exf6 {[%clk 0:03:06]} 11. g4
{[%clk 0:02:33.7]} 11... f5 {[%clk 0:03:06]} 12. O-O-O {[%clk 0:02:33.8]} 12...
Nd7 {[%clk 0:03:04.4]} 13. g5 {[%clk 0:02:31.2]} 13... Nf7 {[%clk 0:03:04.6]}
14. h4 {[%clk 0:02:32.8]} 14... Re8 {[%clk 0:03:05.7]} 15. h5 {[%clk 0:02:33.1]}
15... Nf8 {[%clk 0:03:06.4]} 16. Bf2 {[%clk 0:02:31.1]} 16... Nd6 {[%clk
0:03:01.2]} 17. Qh3 {[%clk 0:02:26]} 17... b5 {[%clk 0:02:56.5]} 18. Nb1 {[%clk
0:02:09.2]} 18... Ne4 {[%clk 0:02:55.2]} 19. Be3 {[%clk 0:02:10.3]} 19... Qa5
{[%clk 0:02:43.4]} 20. a3 {[%clk 0:02:08.8]} 20... b4 {[%clk 0:02:42.6]} 21.
axb4 {[%clk 0:01:21.5]} 21... Qxb4 {[%clk 0:02:41.4]} 22. c3 {[%clk 0:01:23.1]}
22... Qb6 {[%clk 0:02:32.3]} 23. Rh2 {[%clk 0:01:22.1]} 23... Rab8 {[%clk
0:02:27.8]} 24. Rc2 {[%clk 0:01:22.7]} 24... Qa5 {[%clk 0:02:19]} 25. Bd3 {[%clk
0:01:14.7]} 25... Nd6 {[%clk 0:02:11.6]} 26. Na3 {[%clk 0:00:58.7]} 26... Re7
{[%clk 0:02:07.9]} 27. Kd2 {[%clk 0:00:55.3]} 27... Reb7 {[%clk 0:01:30.8]} 28.
Rb1 {[%clk 0:00:54.6]} 28... Rb3 {[%clk 0:01:30.2]} 29. Qh1 {[%clk 0:00:50.8]}
29... Qb6 {[%clk 0:01:16.2]} 30. h6 {[%clk 0:00:50.5]} 30... Bh8 {[%clk
0:01:14.4]} 31. Ra1 {[%clk 0:00:45.3]} 31... Ne6 {[%clk 0:01:12.9]} 32. Qc1
{[%clk 0:00:32.8]} 32... Qc7 {[%clk 0:01:10.7]} 33. Ke2 {[%clk 0:00:31.6]} 33...
Re8 {[%clk 0:01:11.2]} 34. Kf3 {[%clk 0:00:31.8]} 34... Qd7 {[%clk 0:01:06.8]}
35. Qg1 {[%clk 0:00:28.2]} 35... Re7 {[%clk 0:01:05.5]} 36. Re2 {[%clk
0:00:28.8]} 36... Rb8 {[%clk 0:01:05.7]} 37. Nb1 {[%clk 0:00:28.1]} 37... Rbe8
{[%clk 0:01:01]} 38. Nd2 {[%clk 0:00:27.3]} 38... Qc7 {[%clk 0:00:51.4]} 39. Qg3
{[%clk 0:00:21]} 39... Ne4 {[%clk 0:00:51.1]} 40. Bxe4 {[%clk 0:00:22.1]} 40...
fxe4+ {[%clk 0:00:51.8]} 41. Kg2 {[%clk 0:00:23.6]} 41... Rf7 {[%clk 0:00:51.7]}
42. Rf1 {[%clk 0:00:24.4]} 42... Ref8 {[%clk 0:00:52]} 43. Ref2 {[%clk
0:00:25.6]} 43... Rf5 {[%clk 0:00:52.4]} 44. b4 {[%clk 0:00:25.2]} 44... a5
{[%clk 0:00:52.5]} 45. Nb3 {[%clk 0:00:14.1]} 45... axb4 {[%clk 0:00:51.1]} 46.
cxb4 {[%clk 0:00:15.5]} 46... Qb6 {[%clk 0:00:52.1]} 47. Nc5 {[%clk 0:00:16.5]}
47... Nxd4 {[%clk 0:00:43.1]} 48. Nd7 {[%clk 0:00:15.6]} 48... Qxb4 {[%clk
0:00:43.5]} 49. Nxf8 {[%clk 0:00:16.7]} 49... Qxf8 {[%clk 0:00:44.3]} 50. Rb1
{[%clk 0:00:16.9]} 50... Ne6 {[%clk 0:00:43.9]} 51. Rc1 {[%clk 0:00:14.7]} 51...
d4 {[%clk 0:00:44.1]} 52. Rxc6 {[%clk 0:00:15.3]} 52... Qe8 {[%clk 0:00:44.6]}
53. Rfc2 {[%clk 0:00:15.5]} 53... dxe3 {[%clk 0:00:35.6]} 54. Rc8 {[%clk
0:00:15.6]} 54... Nd8 {[%clk 0:00:36.5]} 55. Qxe3 {[%clk 0:00:16.3]} 55... Rd5
{[%clk 0:00:37.1]} 56. Qb3 {[%clk 0:00:15.6]} 56... Qd7 {[%clk 0:00:35]} 57. Rd2
{[%clk 0:00:15.9]} 57... Qxc8 {[%clk 0:00:33.5]} 58. Qxd5+ {[%clk 0:00:14.5]}
58... Ne6 {[%clk 0:00:31.2]} 59. Qxe4 {[%clk 0:00:14.3]} 59... Ba1 {[%clk
0:00:30.9]} 60. Re2 {[%clk 0:00:14.1]} 60... Kf7 {[%clk 0:00:31.3]} 61. Ra2
{[%clk 0:00:14.8]} 61... Bd4 {[%clk 0:00:29.6]} 62. Ra7+ {[%clk 0:00:15.3]}
62... Bxa7 {[%clk 0:00:30]} 63. f5 {[%clk 0:00:15.9]} 63... Nxg5 {[%clk
0:00:29.4]} 64. fxg6+ {[%clk 0:00:16.6]} 64... hxg6 {[%clk 0:00:29.5]} 65. Qf4+
{[%clk 0:00:17.9]} 65... Kg8 {[%clk 0:00:29.6]} 66. Qxg5 {[%clk 0:00:18.4]}
66... Qb7+ {[%clk 0:00:29.4]} 67. Kh2 {[%clk 0:00:17]} 67... Kh7 {[%clk
0:00:30.8]} 68. Qd2 {[%clk 0:00:14]} 68... Bb8+ {[%clk 0:00:29.6]} 69. Kg1
{[%clk 0:00:13.7]} 69... Be5 {[%clk 0:00:30.8]} 70. Qg5 {[%clk 0:00:14.1]} 70...
Bh8 {[%clk 0:00:29.8]} 71. Kh2 {[%clk 0:00:14.6]} 71... Qb2+ {[%clk 0:00:30]}
72. Kh3 {[%clk 0:00:15.5]} 72... Qc3+ {[%clk 0:00:30.4]} 73. Kg2 {[%clk
0:00:16.2]} 73... Qe5 {[%clk 0:00:29.5]} 74. Qd2 {[%clk 0:00:16.6]} 74... g5
{[%clk 0:00:29.3]} 75. Qd8 {[%clk 0:00:13.2]} 75... Kxh6 {[%clk 0:00:28.8]} 76.
Qg8 {[%clk 0:00:14.2]} 76... Bg7 {[%clk 0:00:29.9]} 77. Kh3 {[%clk 0:00:15.3]}
77... Qe3+ {[%clk 0:00:30]} 78. Kg4 {[%clk 0:00:15.6]} 78... Qf4+ {[%clk
0:00:30.8]} 79. Kh3 {[%clk 0:00:16.9]} 79... g4+ {[%clk 0:00:31.6]} 80. Kg2
{[%clk 0:00:16.9]} 80... Qf3+ {[%clk 0:00:32.5]} 81. Kg1 {[%clk 0:00:16.6]}
81... Bd4+ {[%clk 0:00:30.6]} 82. Kh2 {[%clk 0:00:17.9]} 82... Qh3# {[%clk
0:00:31.4]} 0-1